fUST/lending_fUST_20251203
["ID","MTS","AMOUNT","RATE_DAILY","PERIOD"]
[395821568,1764727845005,-175.013335,0.00011351,2]
[395821570,1764727845016,-175.013335,0.00011351,2]
[395821573,1764727845027,-500.0,0.00011351,2]
[395821575,1764727845036,-504.91764331,0.00011351,2]
[395821577,1764727845047,-500.0,0.00011352,2]
[395821579,1764727845057,-505.55,0.00011352,2]
[395821581,1764727845067,-500.0,0.00011352,2]
[395821583,1764727845079,-223.618109,0.00011352,2]
[395821585,1764727845090,-223.618109,0.00011352,2]
[395821587,1764727845100,-223.618109,0.00011352,2]
[395821589,1764727845110,-223.618109,0.00011352,2]
[395821591,1764727845122,-151.0,0.00011352,2]
[395821594,1764727845133,-1161.11,0.00011352,2]
[395821596,1764727845142,-151.0,0.00011352,2]
[395821598,1764727845153,-151.0,0.00011352,2]
[395821600,1764727845163,-151.0,0.00011352,2]
[395821602,1764727845174,-500.0,0.00011352,2]
[395821604,1764727845184,-4349.01,0.00011352,2]
[395821606,1764727845194,-500.0,0.00011352,2]
[395821608,1764727845206,-151.0,0.00011352,2]
[395821610,1764727845216,-170.349557,0.00011352,2]
[395821612,1764727845227,-500.0,0.00011352,2]
[395821615,1764727845237,-812.06,0.00011352,2]
[395821617,1764727845247,-151.0,0.00011352,2]
[395821619,1764727845257,-879.2,0.00011352,2]
[395821621,1764727845268,-151.0,0.00011352,2]
[395821623,1764727845277,-151.0,0.00011352,2]
[395821625,1764727845287,-2540.89,0.00011352,2]
[395821627,1764727845297,-1028.86,0.00011352,2]
[395821629,1764727845308,-1162.73,0.00011352,2]
[395821631,1764727845317,-1630.12,0.00011352,2]
[395821633,1764727845329,-563.54,0.00011352,2]
[395821635,1764727845340,-1493.81,0.00011352,2]
[395821637,1764727845351,-3645.18,0.00011352,2]
[395821639,1764727845361,-2482.56,0.00011352,2]
[395821641,1764727845371,-500.0,0.00011352,2]
[395821643,1764727845381,-8564.05,0.00011352,2]
[395821645,1764727845391,-500.0,0.00011353,2]
[395821647,1764727845402,-439.32027006,0.00011353,2]
[395821649,1764727845413,-500.0,0.00011353,2]
[395821651,1764727845422,-500.0,0.00011353,2]
[395821653,1764727845433,-507.51,0.00011353,2]
[395821655,1764727845443,-500.0,0.00011353,2]
[395821657,1764727845454,-500.0,0.00011353,2]
[395821659,1764727845464,-1479.63,0.00011353,2]
[395821661,1764727845475,-515.44,0.00011353,2]
[395821663,1764727845485,-508.91,0.00011353,2]
[395821665,1764727845495,-511.55,0.00011353,2]
[395821668,1764727845506,-500.0,0.00011353,2]
[395821670,1764727845516,-526.01,0.00011353,2]
[395821672,1764727845526,-792.1,0.00011353,2]
[395821674,1764727845537,-500.0,0.00011353,2]
[395821676,1764727845547,-501.9327731,0.00011353,2]
[395821678,1764727845557,-501.98349108,0.00011353,2]
[395821680,1764727845569,-500.0,0.00011353,2]
[395821682,1764727845578,-575.22,0.00011353,2]
[395821684,1764727845588,-500.0,0.00011353,2]
[395821687,1764727845599,-1484.37,0.00011353,2]
[395821689,1764727845609,-610.27,0.00011353,2]
[395821691,1764727845619,-496.97774659,0.00011353,2]
[395821693,1764727845630,-500.0,0.00011353,2]
[395821695,1764727845640,-500.0,0.00011353,2]
[395821697,1764727845650,-500.0,0.00011353,2]
[395821699,1764727845661,-500.0,0.00011353,2]
[395821701,1764727845670,-500.0,0.00011353,2]
[395821703,1764727845681,-500.0,0.00011353,2]
[395821706,1764727845691,-500.0,0.00011353,2]
[395821708,1764727845700,-500.0,0.00011353,2]
[395821710,1764727845710,-500.0,0.00011353,2]
[395821712,1764727845720,-500.0,0.00011353,2]
[395821714,1764727845730,-715.3,0.00011353,2]
[395821716,1764727845741,-500.0,0.00011353,2]
[395821718,1764727845751,-500.0,0.00011353,2]
[395821720,1764727845761,-402.77597433,0.00011353,2]
[395821722,1764727845771,-691.54,0.00011353,2]
[395821724,1764727845781,-500.0,0.00011353,2]
[395821726,1764727845791,-500.0,0.00011353,2]
[395821728,1764727845801,-500.0,0.00011353,2]
[395821730,1764727845811,-1277.1,0.00011353,2]
[395821733,1764727845821,-223.618109,0.00011353,2]
[395821735,1764727845831,-223.618109,0.00011353,2]
[395821737,1764727845841,-223.618109,0.00011353,2]
[395821739,1764727845852,-223.618109,0.00011353,2]
[395821741,1764727845863,-642.24,0.00011353,2]
[395821743,1764727845873,-500.0,0.00011353,2]
[395821745,1764727845884,-500.0,0.00011353,2]
[395821747,1764727845894,-500.0,0.00011353,2]
[395821749,1764727845904,-513.21586005,0.00011353,2]
[395821751,1764727845914,-797.09,0.00011353,2]
[395821753,1764727845924,-151.0,0.00011353,2]
[395821755,1764727845934,-607.99,0.00011353,2]
[395821758,1764727845944,-500.0,0.00011353,2]
[395821760,1764727845954,-500.0,0.00011353,2]
[395821762,1764727845970,-500.0,0.00011353,2]
[395821764,1764727845980,-500.0,0.00011353,2]
[395821767,1764727845990,-500.0,0.00011353,2]
[395821769,1764727846000,-151.0,0.00011353,2]
[395821771,1764727846010,-151.0,0.00011353,2]
[395821773,1764727846020,-151.0,0.00011353,2]
[395821775,1764727846030,-1785.56,0.00011353,2]
[395821777,1764727846042,-500.0,0.00011353,2]
[395821779,1764727846052,-152.554592,0.00011353,2]
[395821781,1764727846061,-681.86,0.00011353,2]
[395821784,1764727846073,-500.0,0.00011353,2]
[395821786,1764727846083,-500.0,0.00011353,2]
[395821788,1764727846093,-512.28,0.00011353,2]
[395821790,1764727846105,-151.0,0.00011353,2]
[395821792,1764727846115,-151.0,0.00011353,2]
[395821794,1764727846126,-500.0,0.00011353,2]
[395821796,1764727846136,-151.0,0.00011353,2]
[395821798,1764727846146,-500.0,0.00011353,2]
[395821800,1764727846155,-548.09,0.00011353,2]
[395821802,1764727846166,-1277.73,0.00011353,2]
[395821804,1764727846177,-500.0,0.00011353,2]
[395821806,1764727846186,-830.54,0.00011353,2]
[395821809,1764727846197,-500.0,0.00011353,2]
[395821811,1764727846207,-524.68123727,0.00011353,2]
[395821813,1764727846217,-616.56,0.00011353,2]
[395821815,1764727846230,-545.21,0.00011353,2]
[395821817,1764727846240,-500.0,0.00011353,2]
[395821819,1764727846251,-1712.55,0.00011353,2]
[395821821,1764727846262,-500.0,0.00011353,2]
[395821823,1764727846273,-2089.51,0.00011353,2]
[395821825,1764727846283,-500.0,0.00011353,2]
[395821827,1764727846294,-175.013335,0.00011353,2]
[395821829,1764727846305,-175.013335,0.00011353,2]
[395821831,1764727846315,-175.013335,0.00011353,2]
[395821833,1764727846326,-175.013335,0.00011353,2]
[395821835,1764727846340,-500.0,0.00011354,2]
[395821838,1764727846354,-500.0,0.00011354,2]
[395821840,1764727846364,-500.0,0.00011354,2]
[395821842,1764727846376,-508.98,0.00011354,2]
[395821844,1764727846388,-500.0,0.00011354,2]
[395821846,1764727846399,-500.0,0.00011354,2]
[395821848,1764727846411,-500.0,0.00011354,2]
[395821850,1764727846422,-500.0,0.00011354,2]
[395821852,1764727846432,-591.4,0.00011354,2]
[395821854,1764727846443,-500.0,0.00011354,2]
[395821857,1764727846454,-500.0,0.00011354,2]
[395821859,1764727846464,-501.5435173,0.00011354,2]
[395821861,1764727846474,-49.60899741,0.00011354,2]
[395821864,1764727846491,-450.39100259,0.00011354,2]
[395821865,1764727846501,-806.73,0.00011354,2]
[395821866,1764727846511,-500.0,0.00011354,2]
[395821867,1764727846521,-500.0,0.00011354,2]
[395821868,1764727846531,-500.0,0.00011354,2]
[395821869,1764727846540,-500.0,0.00011354,2]
[395821870,1764727846550,-1140.82,0.00011354,2]
[395821871,1764727846560,-500.0,0.00011354,2]
[395821872,1764727846569,-891.11,0.00011354,2]
[395821873,1764727846579,-596.83656541,0.00011354,2]
[395821875,1764727846589,-500.0,0.00011354,2]
[395821877,1764727846602,-500.0,0.00011354,2]
[395821879,1764727846612,-500.0,0.00011354,2]
[395821881,1764727846622,-500.0,0.00011354,2]
[395821883,1764727846633,-500.0,0.00011354,2]
[395821885,1764727846643,-599.15,0.00011354,2]
[395821887,1764727846653,-500.0,0.00011354,2]
[395821889,1764727846663,-500.84505515,0.00011354,2]
[395821891,1764727846673,-500.0,0.00011354,2]
[395821894,1764727846685,-217.54311615,0.00011354,2]
[395821941,1764727847112,-500.0,0.00011354,2]
[395821944,1764727847136,-502.28007018,0.00011354,2]
[395821947,1764727847153,-500.0,0.00011354,2]
[395821949,1764727847164,-500.0,0.00011354,2]
[395821951,1764727847173,-500.0,0.00011354,2]
[395821953,1764727847183,-500.0,0.00011354,2]
[395821955,1764727847193,-500.0,0.00011354,2]
[395821957,1764727847203,-500.0,0.00011354,2]
[395821959,1764727847212,-151.0,0.00011354,2]
[395821961,1764727847221,-645.57728775,0.00011354,2]
[395821963,1764727847230,-500.0,0.00011354,2]
[395821965,1764727847239,-596.06,0.00011354,2]
[395821967,1764727847248,-500.0,0.00011354,2]
[395821969,1764727847257,-500.0,0.00011354,2]
[395821971,1764727847266,-500.0,0.00011354,2]
[395821973,1764727847275,-500.0,0.00011354,2]
[395821975,1764727847284,-534.02946326,0.00011354,2]
[395821977,1764727847294,-500.0,0.00011354,2]
[395821979,1764727847303,-500.0,0.00011354,2]
[395821981,1764727847313,-280.31942003,0.00011354,2]
[395821983,1764727847322,-500.0,0.00011354,2]
[395821985,1764727847335,-500.0,0.00011354,2]
[395821987,1764727847344,-500.0,0.00011354,2]
[395821989,1764727847353,-538.77,0.00011354,2]
[395821991,1764727847363,-501.33061591,0.00011354,2]
[395821993,1764727847374,-501.588659,0.00011354,2]
[395821995,1764727847385,-501.08999266,0.00011354,2]
[395821997,1764727847394,-500.0,0.00011354,2]
[395821999,1764727847406,-547.23,0.00011354,2]
[395822001,1764727847415,-500.0,0.00011354,2]
[395822003,1764727847425,-734.23,0.00011354,2]
[395822005,1764727847434,-539.25,0.00011354,2]
[395822007,1764727847444,-501.66095066,0.00011354,2]
[395822009,1764727847454,-500.0,0.00011354,2]
[395822011,1764727847463,-626.6,0.00011354,2]
[395822013,1764727847471,-625.38,0.00011354,2]
[395822015,1764727847483,-505.53869188,0.00011354,2]
[395822017,1764727847492,-500.0,0.00011354,2]
[395822019,1764727847501,-917.95,0.00011354,2]
[395822021,1764727847511,-500.0,0.00011354,2]
[395822024,1764727847521,-500.0,0.00011354,2]
[395822025,1764727847530,-185.89603608,0.00011354,2]
[395822027,1764727847539,-645.49,0.00011354,2]
[395822029,1764727847548,-501.15097191,0.00011354,2]
[395822031,1764727847557,-500.0,0.00011354,2]
[395822033,1764727847567,-686.53,0.00011354,2]
[395822035,1764727847576,-500.0,0.00011354,2]
[395822037,1764727847585,-500.0,0.00011354,2]
[395822039,1764727847594,-505.11051098,0.00011354,2]
[395822041,1764727847603,-500.0,0.00011354,2]
[395822043,1764727847612,-500.0,0.00011354,2]
[395822045,1764727847621,-500.5537591,0.00011354,2]
[395822046,1764727847629,-500.0,0.00011354,2]
[395822049,1764727847639,-500.0,0.00011354,2]
[395822051,1764727847648,-500.59499763,0.00011354,2]
[395822052,1764727847658,-583.85872441,0.00011354,2]
[395822054,1764727847667,-582.97307487,0.00011354,2]
[395822056,1764727847677,-500.0,0.00011354,2]
[395822059,1764727847686,-500.0,0.00011354,2]
[395822061,1764727847696,-1074.08,0.00011354,2]
[395822062,1764727847705,-587.24,0.00011354,2]
[395822064,1764727847715,-500.0,0.00011354,2]
[395822066,1764727847724,-500.0,0.00011354,2]
[395822068,1764727847733,-500.0,0.00011354,2]
[395822070,1764727847742,-521.03,0.00011354,2]
[395822072,1764727847751,-740.67,0.00011354,2]
[395822074,1764727847760,-500.0,0.00011354,2]
[395822076,1764727847769,-500.0,0.00011354,2]
[395822078,1764727847778,-905.2,0.00011354,2]
[395822080,1764727847788,-500.0,0.00011354,2]
[395822082,1764727847797,-540.42,0.00011354,2]
[395822084,1764727847808,-677.49,0.00011354,2]
[395822086,1764727847817,-500.0,0.00011354,2]
[395822088,1764727847827,-529.13,0.00011354,2]
[395822090,1764727847836,-500.0,0.00011354,2]
[395822092,1764727847845,-223.618109,0.00011354,2]
[395822094,1764727847854,-223.618109,0.00011354,2]
[395822096,1764727847864,-500.0,0.00011354,2]
[395822098,1764727847873,-223.618109,0.00011354,2]
[395822100,1764727847882,-223.618109,0.00011354,2]
[395822102,1764727847891,-223.618109,0.00011354,2]
[395822104,1764727847900,-223.618109,0.00011354,2]
[395822106,1764727847914,-957.21,0.00011354,2]
[395822108,1764727847922,-223.618109,0.00011354,2]
[395822110,1764727847931,-223.618109,0.00011354,2]
[395822112,1764727847940,-500.0,0.00011354,2]
[395822114,1764727847950,-976.5,0.00011354,2]
[395822116,1764727847958,-684.59,0.00011354,2]
[395822118,1764727847968,-500.0,0.00011354,2]
[395822120,1764727847977,-430.92745942,0.00011354,2]
[395822122,1764727847986,-514.34378889,0.00011354,2]
[395822124,1764727847995,-151.0,0.00011354,2]
[395822126,1764727848004,-192.644753,0.00011354,2]
[395822128,1764727848012,-500.0,0.00011354,2]
[395822130,1764727848021,-500.0,0.00011354,2]
[395822132,1764727848030,-500.0,0.00011354,2]
[395822134,1764727848039,-151.0,0.00011354,2]
[395822136,1764727848048,-151.0,0.00011354,2]
[395822138,1764727848057,-151.0,0.00011354,2]
[395822139,1764727848065,-151.0,0.00011354,2]
[395822141,1764727848075,-170.89258635,0.00011354,2]
[395822143,1764727848084,-522.3,0.00011354,2]
[395822145,1764727848093,-500.0,0.00011354,2]
[395822147,1764727848102,-500.0,0.00011354,2]
[395822149,1764727848111,-151.0,0.00011354,2]
[395822151,1764727848120,-593.31,0.00011354,2]
[395822153,1764727848129,-151.0,0.00011354,2]
[395822155,1764727848138,-151.0,0.00011354,2]
[395822157,1764727848147,-151.0,0.00011354,2]
[395822159,1764727848156,-215.756452,0.00011354,2]
[395822161,1764727848166,-175.013335,0.00011354,2]
[395822163,1764727848175,-175.013335,0.00011354,2]
[395822165,1764727848185,-175.013335,0.00011354,2]
[395822167,1764727848195,-175.013335,0.00011354,2]
[395822169,1764727848205,-175.013335,0.00011354,2]
[395822171,1764727848215,-175.013335,0.00011354,2]
[395822173,1764727848226,-175.013335,0.00011354,2]
[395822175,1764727848235,-175.01333,0.00011354,2]
[395822177,1764727848245,-512.05756733,0.00011356,2]
[395822179,1764727848255,-525.30998758,0.00011356,2]
[395822181,1764727848268,-151.0,0.00011356,2]
[395822183,1764727848278,-301.8292211,0.000114,2]
[395822185,1764727848287,-1236.02267171,0.00011402,2]
[395822187,1764727848300,-262.17732537,0.00011402,2]
[395822189,1764727848309,-14.4304222,0.00011507,2]
[395822192,1764727848320,-1036.30916038,0.00011507,2]
[395822197,1764727848361,-142.00935262,0.00011507,2]
[395822198,1764727848371,-198.208851,0.00011532,2]
[395822200,1764727848381,-223.618109,0.00011532,2]
[395822203,1764727848391,-223.618109,0.00011532,2]
[395822204,1764727848400,-223.618109,0.00011532,2]
[395822206,1764727848411,-223.618117,0.00011532,2]
[395822208,1764727848420,-151.0,0.00011532,2]
[395822211,1764727848430,-151.0,0.00011532,2]
[395822212,1764727848440,-151.0,0.00011532,2]
[395822214,1764727848448,-151.0,0.00011532,2]
[395822216,1764727848457,-3614.25579861,0.00011532,2]
[395822218,1764727848468,-23493.2860514,0.00011532,2]
[395822220,1764727848479,-11874.6777346,0.00011532,2]
[395822261,1764727848859,-779.9514622,0.00011237,2]
[395822263,1764727848871,-17993.88681914,0.00011237,2]
[395822266,1764727848891,-28550.15801505,0.00011237,2]
[395822268,1764727848900,-154.487124,0.00011351,2]
[395822270,1764727848909,-238485.90833114,0.00011532,2]
[395834405,1764728463061,250.0,0.0002,30]
[395834447,1764728514971,164.0,0.0002,30]
[395834658,1764729032746,-303.41490542,9.606e-05,2]
[395835207,1764729038870,-848.99635111,9.606e-05,2]
[395835209,1764729038881,-1338.36515131,9.703e-05,2]
[395835211,1764729038892,-231.0,9.801e-05,2]
[395835213,1764729038904,-417.34658129,9.851e-05,2]
[395835214,1764729038916,-548.58419551,0.00011249,2]
[395835215,1764729038925,-756.0,0.00011328,2]
[395835216,1764729038936,-201.93286099,0.00011337,2]
[395835217,1764729038948,-334.71331555,0.00011337,2]
[395835218,1764729038959,-190.80597726,0.00011341,2]
[395835219,1764729038969,-500.0,0.00011341,2]
[395835220,1764729038979,-500.0,0.00011341,2]
[395835221,1764729038990,-464.36712032,0.00011341,2]
[395835222,1764729039000,-526.50450225,0.00011341,2]
[395835223,1764729039011,-500.0,0.00011341,2]
[395835224,1764729039021,-500.0,0.00011341,2]
[395835225,1764729039031,-558.04768667,0.00011341,2]
[395835226,1764729039046,-635.54277587,0.00011341,2]
[395835227,1764729039057,-465.0,0.00011341,2]
[395835228,1764729039067,-300.0,0.00011341,2]
[395835229,1764729039078,-500.0,0.00011341,2]
[395835230,1764729039088,-180.36210264,0.00011341,2]
[395835231,1764729039099,-500.0,0.00011341,2]
[395835232,1764729039109,-500.0,0.00011341,2]
[395835233,1764729039120,-341.81723936,0.00011341,2]
[395835234,1764729039130,-50000.0,0.00011342,2]
[395835236,1764729039141,-505.07382671,0.00011342,2]
[395835238,1764729039152,-2225.19,0.00011342,2]
[395835240,1764729039162,-911.49,0.00011342,2]
[395835242,1764729039172,-725.44,0.00011342,2]
[395835244,1764729039182,-628.66,0.00011342,2]
[395835246,1764729039194,-500.0,0.00011342,2]
[395835248,1764729039205,-5632.63,0.00011342,2]
[395835250,1764729039216,-4053.31,0.00011342,2]
[395835252,1764729039226,-3615.67,0.00011342,2]
[395835254,1764729039236,-500.0,0.00011342,2]
[395835256,1764729039247,-500.0,0.00011342,2]
[395835258,1764729039257,-861.36,0.00011342,2]
[395835260,1764729039266,-500.0,0.00011342,2]
[395835262,1764729039276,-598.0,0.00011342,2]
[395835264,1764729039286,-500.0,0.00011342,2]
[395835266,1764729039296,-500.0,0.00011342,2]
[395835268,1764729039306,-505.48610323,0.00011342,2]
[395835270,1764729039316,-1238.47,0.00011342,2]
[395835272,1764729039326,-500.0,0.00011342,2]
[395835274,1764729039335,-500.0,0.00011342,2]
[395835276,1764729039346,-11430.7951821,0.00011344,2]
[395835279,1764729039364,-2028.20974092,0.00011344,2]
[395835580,1764729044644,-528.15661602,0.00011248,2]
[395835581,1764729044654,-905.24,0.00011342,2]
[395835582,1764729044663,-500.0,0.00011342,2]
[395835583,1764729044672,-500.0,0.00011342,2]
[395835585,1764729044681,-781.07788578,0.00011344,2]
[395846373,1764729262985,1163.0,0.0002,30]
[395846398,1764729422372,250.0,0.0002,30]
[395846512,1764729872841,155.0,0.000205,29]
[395846820,1764730117504,347.60975194,0.00011541,7]
[395846821,1764730171027,254.61529073,0.000211,120]
[395846822,1764730208457,292.6989822,0.00011541,7]
[395846834,1764730231798,-525.06757274,0.00010678,2]
[395846835,1764730231852,-125.13566391,0.00010678,2]
[395846836,1764730231861,-238.0,0.00010786,2]
[395846837,1764730231870,-412.20323665,0.0001084,2]
[395846838,1764730231881,-230.01844559,0.0001101,2]
[395846839,1764730231892,-271.1033234,0.0001101,2]
[395846840,1764730231901,-85.80284573,0.00011154,2]
[395846841,1764730231937,-2971.53402046,0.00011154,2]
[395846843,1764730231946,-157.74207795,0.00011242,2]
[395846845,1764730231955,-352.10441068,0.00011242,2]
[395846846,1764730231964,-201.93286099,0.00011331,2]
[395846847,1764730231972,-331.65656488,0.00011331,2]
[395846849,1764730231981,-259.0,0.00011332,2]
[395846851,1764730231990,-300.0,0.00011333,2]
[395846853,1764730231998,-300.0,0.00011333,2]
[395846855,1764730232008,-328.0,0.00011333,2]
[395846857,1764730232018,-500.0,0.00011333,2]
[395846859,1764730232027,-513.39,0.00011333,2]
[395846861,1764730232035,-11555.64450755,0.00011334,2]
[395846895,1764730237978,-677.42648617,0.00011334,2]
[395846898,1764730237993,-2341.09809908,0.00011334,2]
[395846903,1764730238034,-1896.62617065,0.00011334,2]
[395846905,1764730238049,-1072.51206709,0.00011334,2]
[395846911,1764730238089,-32456.69266946,0.00011334,2]
[395846913,1764730238101,-500.0,0.00011334,2]
[395846914,1764730238114,-2188.59,0.00011334,2]
[395846915,1764730238126,-914.87,0.00011334,2]
[395846916,1764730238137,-757.21,0.00011334,2]
[395846917,1764730238150,-631.43,0.00011334,2]
[395846918,1764730238160,-500.0,0.00011334,2]
[395846919,1764730238171,-5715.04,0.00011334,2]
[395846920,1764730238181,-3800.0,0.00011334,2]
[395846921,1764730238193,-4190.39,0.00011334,2]
[395846922,1764730238205,-500.0,0.00011334,2]
[395846923,1764730238217,-500.0,0.00011334,2]
[395846924,1764730238232,-906.02,0.00011334,2]
[395846925,1764730238244,-500.0,0.00011334,2]
[395846926,1764730238257,-593.92,0.00011334,2]
[395846927,1764730238268,-164.40461971,0.00011334,2]
[395846928,1764730238279,-500.0,0.00011334,2]
[395846929,1764730238291,-1238.71,0.00011334,2]
[395846930,1764730238302,-501.96676018,0.00011334,2]
[395846931,1764730238314,-949.72,0.00011334,2]
[395846932,1764730238325,-500.0,0.00011334,2]
[395846933,1764730238336,-905.02,0.00011334,2]
[395846934,1764730238348,-500.0,0.00011334,2]
[395846935,1764730238360,-207.65287892,0.00011334,2]
[395846936,1764730238372,-500.0,0.00011334,2]
[395846937,1764730238383,-233.47480938,0.00011334,2]
[395846939,1764730238394,-500.0,0.00011334,2]
[395846940,1764730238405,-500.0,0.00011334,2]
[395846943,1764730238421,-500.0,0.00011334,2]
[395846945,1764730238432,-500.0,0.00011334,2]
[395846949,1764730238463,-500.0,0.00011334,2]
[395846951,1764730238475,-500.0,0.00011334,2]
[395846954,1764730238487,-181.7269751,0.00011334,2]
[395846956,1764730238500,-508.72254268,0.00011334,2]
[395846958,1764730238512,-500.0,0.00011334,2]
[395846960,1764730238528,-500.0,0.00011334,2]
[395846963,1764730238541,-430.42898401,0.00011334,2]
[395846965,1764730238552,-309.0412902,0.00011335,2]
[395846967,1764730238566,-151.46061471,0.00011335,2]
[395846970,1764730238579,-152.30925516,0.00011335,2]
[395846972,1764730238592,-500.0,0.00011337,2]
[395846974,1764730238604,-500.0,0.00011337,2]
[395846976,1764730238616,-500.0,0.00011337,2]
[395846979,1764730238629,-503.90524276,0.00011337,2]
[395846981,1764730238640,-500.0,0.00011337,2]
[395846983,1764730238653,-535.86,0.00011337,2]
[395846986,1764730238664,-500.0,0.00011337,2]
[395846988,1764730238675,-500.0,0.00011337,2]
[395846990,1764730238687,-500.0,0.00011337,2]
[395846992,1764730238699,-500.0,0.00011337,2]
[395846995,1764730238711,-514.52597977,0.00011337,2]
[395846997,1764730238722,-500.0,0.00011337,2]
[395846999,1764730238734,-500.0,0.00011337,2]
[395847002,1764730238746,-500.0,0.00011337,2]
[395847004,1764730238758,-500.0,0.00011337,2]
[395847006,1764730238772,-500.0,0.00011337,2]
[395847009,1764730238785,-196.905032,0.00011337,2]
[395847011,1764730238800,-608.32,0.00011337,2]
[395847013,1764730238812,-216.18856886,0.00011337,2]
[395847016,1764730238826,-500.0,0.00011337,2]
[395847018,1764730238838,-502.14013341,0.00011337,2]
[395847020,1764730238849,-500.0,0.00011337,2]
[395847022,1764730238860,-504.65848116,0.00011337,2]
[395847024,1764730238871,-500.0,0.00011337,2]
[395847026,1764730238883,-501.66828858,0.00011337,2]
[395847029,1764730238895,-500.0,0.00011337,2]
[395847031,1764730238906,-500.0,0.00011337,2]
[395847033,1764730238917,-500.0,0.00011337,2]
[395847035,1764730238929,-500.0,0.00011337,2]
[395847037,1764730238940,-500.0,0.00011337,2]
[395847039,1764730238950,-500.0,0.00011337,2]
[395847042,1764730238962,-532.06,0.00011337,2]
[395847044,1764730238974,-500.0,0.00011337,2]
[395847046,1764730238986,-643.25574122,0.00011337,2]
[395847048,1764730238997,-500.0,0.00011337,2]
[395847050,1764730239008,-502.70360861,0.00011337,2]
[395847052,1764730239019,-500.0,0.00011337,2]
[395847054,1764730239030,-500.0,0.00011337,2]
[395847056,1764730239041,-500.0,0.00011337,2]
[395847059,1764730239052,-500.0,0.00011337,2]
[395847061,1764730239062,-500.0,0.00011337,2]
[395847063,1764730239073,-500.0,0.00011337,2]
[395847065,1764730239085,-614.03,0.00011337,2]
[395847067,1764730239097,-193.62070949,0.00011337,2]
[395847070,1764730239109,-500.0,0.00011337,2]
[395847072,1764730239120,-500.0,0.00011337,2]
[395847074,1764730239131,-529.28132077,0.00011337,2]
[395847076,1764730239144,-500.0,0.00011337,2]
[395847078,1764730239157,-500.0,0.00011338,2]
[395847080,1764730239169,-610.9,0.00011338,2]
[395847082,1764730239180,-1749.59,0.00011338,2]
[395847084,1764730239192,-1075.22,0.00011338,2]
[395847086,1764730239203,-500.0,0.00011338,2]
[395847089,1764730239215,-500.0,0.00011338,2]
[395847091,1764730239227,-608.23,0.00011338,2]
[395847093,1764730239238,-500.0,0.00011338,2]
[395847095,1764730239249,-500.0,0.00011338,2]
[395847097,1764730239260,-1223.7,0.00011338,2]
[395847100,1764730239273,-500.0,0.00011338,2]
[395847102,1764730239284,-2923.2,0.00011338,2]
[395847104,1764730239295,-500.0,0.00011338,2]
[395847106,1764730239307,-861.17,0.00011338,2]
[395847108,1764730239318,-1320.57,0.00011338,2]
[395847111,1764730239329,-763.78,0.00011338,2]
[395847113,1764730239339,-1209.37,0.00011338,2]
[395847115,1764730239351,-502.30990418,0.00011338,2]
[395847117,1764730239361,-918.58,0.00011338,2]
[395847119,1764730239371,-508.28896483,0.00011338,2]
[395847121,1764730239381,-711.57,0.00011338,2]
[395847123,1764730239392,-500.0,0.00011338,2]
[395847125,1764730239403,-1558.39,0.00011338,2]